[Event "NJSK 2018 Jeugd A"]
[Site "Assen, Netherlands"]
[Date "2018.05.04"]
[Round "6.7"]
[White "De Boer, Bas"]
[Black "Bueno, Mark"]
[Result "1-0"]
[TimeControl "40/90m+30m+30sec/move"]
[WhiteElo "2159"]
[BlackElo "1999"]

1. Nf3 {[%clk 01:30:57]} {[%emt 00:00:03]} Nf6 {[%clk 01:30:39]} {[%emt
00:00:22]} 2. c4 {[%clk 01:31:19]} {[%emt 00:00:08]} b6 {[%clk 01:30:50]}
{[%emt 00:00:20]} 3. g3 {[%clk 01:31:40]} {[%emt 00:00:08]} Bb7 {[%clk
01:31:16]} {[%emt 00:00:05]} 4. Bg2 {[%clk 01:32:04]} {[%emt 00:00:04]} e6
{[%clk 01:31:43]} {[%emt 00:00:04]} 5. O-O {[%clk 01:31:51]} {[%emt 00:00:42]}
Be7 {[%clk 01:32:11]} {[%emt 00:00:03]} 6. Nc3 {[%clk 01:31:39]} {[%emt
00:00:41]} Ne4 {[%clk 01:32:20]} {[%emt 00:00:21]} 7. Qc2 {[%clk 01:30:37]}
{[%emt 00:01:32]} Nxc3 {[%clk 01:32:45]} {[%emt 00:00:06]} 8. Qxc3 {[%clk
01:27:54]} {[%emt 00:03:12]} O-O {[%clk 01:33:10]} {[%emt 00:00:06]} 9. d4
{[%clk 01:26:41]} {[%emt 00:01:41]} f5 {[%clk 01:33:39]} {[%emt 00:00:03]} 10.
b3 {[%clk 01:22:59]} {[%emt 00:04:11]} Bf6 {[%clk 01:34:07]} {[%emt 00:00:02]}
11. Bb2 {[%clk 01:23:09]} {[%emt 00:00:19]} Qe7 {[%clk 01:34:31]} {[%emt
00:00:07]} 12. Qd2 {[%clk 01:22:18]} {[%emt 00:01:20]} d6 {[%clk 01:34:44]}
{[%emt 00:00:19]} 13. a4 {[%clk 01:15:55]} {[%emt 00:06:52]} a5 {[%clk
01:34:42]} {[%emt 00:00:33]} 14. Rac1 {[%clk 01:08:44]} {[%emt 00:07:40]} Nd7
{[%clk 01:34:55]} {[%emt 00:00:18]} 15. Rfd1 {[%clk 01:04:26]} {[%emt
00:04:46]} Rfe8 {[%clk 01:34:21]} {[%emt 00:01:06]} 16. Ba3 {[%clk 01:02:06]}
{[%emt 00:02:50]} Rad8 {[%clk 01:30:04]} {[%emt 00:04:47]} 17. b4 {[%clk
00:58:11]} {[%emt 00:04:24]} axb4 {[%clk 01:29:09]} {[%emt 00:01:26]} 18. Bxb4
{[%clk 00:58:34]} {[%emt 00:00:06]} c5 {[%clk 01:26:20]} {[%emt 00:03:19]} 19.
Bc3 {[%clk 00:55:42]} {[%emt 00:03:22]} Be4 {[%clk 01:23:23]} {[%emt 00:03:27]}
20. d5 {[%clk 00:50:04]} {[%emt 00:06:08]} exd5 {[%clk 01:22:17]} {[%emt
00:01:37]} 21. cxd5 {[%clk 00:50:01]} {[%emt 00:00:33]} Ra8 {[%clk 01:22:03]}
{[%emt 00:00:44]} 22. Ra1 {[%clk 00:48:21]} {[%emt 00:02:09]} Ra7 {[%clk
01:11:00]} {[%emt 00:11:35]} 23. Bf1 {[%clk 00:46:15]} {[%emt 00:02:33]} Rea8
{[%clk 01:09:00]} {[%emt 00:02:32]} 24. Ne1 {[%clk 00:41:36]} {[%emt 00:05:06]}
f4 {[%clk 00:51:34]} {[%emt 00:17:59]} 25. f3 {[%clk 00:40:54]} {[%emt
00:01:10]} Bg6 {[%clk 00:51:45]} {[%emt 00:00:20]} 26. gxf4 {[%clk 00:40:32]}
{[%emt 00:00:50]} Rxa4 {[%clk 00:51:46]} {[%emt 00:00:31]} 27. Rxa4 {[%clk
00:40:37]} {[%emt 00:00:25]} Rxa4 {[%clk 00:52:13]} {[%emt 00:00:03]} 28. e4
{[%clk 00:40:44]} {[%emt 00:00:22]} Be8 {[%clk 00:36:49]} {[%emt 00:15:56]} 29.
Bb5 {[%clk 00:33:14]} {[%emt 00:07:58]} Bxc3 {[%clk 00:32:43]} {[%emt
00:04:38]} 30. Qxc3 {[%clk 00:33:15]} {[%emt 00:00:29]} Rb4 {[%clk 00:33:08]}
{[%emt 00:00:05]} 31. Bc6 {[%clk 00:31:19]} {[%emt 00:02:25]} Nb8 {[%clk
00:25:42]} {[%emt 00:07:57]} 32. Nc2 {[%clk 00:30:30]} {[%emt 00:01:18]} Ra4
{[%clk 00:13:12]} {[%emt 00:13:00]} 33. Bxa4 {[%clk 00:28:41]} {[%emt
00:02:18]} Bxa4 {[%clk 00:13:36]} {[%emt 00:00:07]} 34. Ra1 {[%clk 00:28:47]}
{[%emt 00:00:24]} b5 {[%clk 00:13:47]} {[%emt 00:00:20]} 35. Ne3 {[%clk
00:28:38]} {[%emt 00:00:37]} Nd7 {[%clk 00:12:39]} {[%emt 00:01:40]} 36. Nf5
{[%clk 00:28:41]} {[%emt 00:00:25]} Qf8 {[%clk 00:11:01]} {[%emt 00:02:09]} 37.
Kf2 {[%clk 00:26:51]} {[%emt 00:02:18]} g6 {[%clk 00:09:51]} {[%emt 00:01:43]}
38. Rg1 {[%clk 00:27:12]} {[%emt 00:00:07]} Kf7 {[%clk 00:09:42]} {[%emt
00:00:40]} 39. Ng3 {[%clk 00:16:32]} {[%emt 00:11:08]} Qh6 {[%clk 00:09:02]}
{[%emt 00:01:13]} 40. e5 {[%clk 00:15:12]} {[%emt 00:01:46]} Ke7 {[%clk
00:07:06]} {[%emt 00:02:29]} 41. exd6+ {[%clk 00:14:11]} {[%emt 00:01:31]} Kxd6
{[%clk 00:07:07]} {[%emt 00:00:29]} 42. Ne4+ {[%clk 00:14:19]} {[%emt
00:00:22]} Kc7 {[%clk 00:05:48]} {[%emt 00:01:49]} 43. Qa5+ {[%clk 00:12:26]}
{[%emt 00:02:23]} Kb7 {[%clk 00:06:13]} {[%emt 00:00:05]} 44. Nd6+ {[%clk
00:12:36]} {[%emt 00:00:19]} 1-0

[Event "NJSK 2018 Jeugd A"]
[Site "Assen, Netherlands"]
[Date "2018.05.04"]
[Round "6.8"]
[White "Van Hoorn, Geert"]
[Black "Gijsen, William"]
[Result "1-0"]
[TimeControl "40/90m+30m+30sec/move"]
[WhiteElo "2008"]
[BlackElo "1825"]

1. e4 {[%clk 01:30:58]} c5 {[%clk 01:30:57]} {[%emt 00:00:04]} 2. Ne2 {[%clk
01:31:21]} {[%emt 00:00:07]} Nc6 {[%clk 01:31:19]} {[%emt 00:00:08]} 3. g3
{[%clk 01:31:42]} {[%emt 00:00:10]} d6 {[%clk 01:30:45]} {[%emt 00:01:03]} 4.
Bg2 {[%clk 01:32:00]} {[%emt 00:00:12]} g6 {[%clk 01:31:08]} {[%emt 00:00:07]}
5. O-O {[%clk 01:32:05]} {[%emt 00:00:25]} Bg7 {[%clk 01:31:32]} {[%emt
00:00:06]} 6. c3 {[%clk 01:32:25]} {[%emt 00:00:10]} e5 {[%clk 01:30:11]}
{[%emt 00:01:51]} 7. d3 {[%clk 01:31:49]} {[%emt 00:01:06]} Nge7 {[%clk
01:29:17]} {[%emt 00:01:24]} 8. f4 {[%clk 01:31:41]} {[%emt 00:00:38]} O-O
{[%clk 01:18:56]} {[%emt 00:10:52]} 9. Be3 {[%clk 01:30:49]} {[%emt 00:01:20]}
b6 {[%clk 01:18:43]} {[%emt 00:00:45]} 10. d4 {[%clk 01:29:46]} {[%emt
00:01:32]} Rb8 {[%clk 01:08:31]} {[%emt 00:10:42]} 11. Qd2 {[%clk 01:26:44]}
{[%emt 00:03:31]} Bg4 {[%clk 01:05:14]} {[%emt 00:03:47]} 12. fxe5 {[%clk
01:24:16]} {[%emt 00:02:59]} cxd4 {[%clk 01:04:16]} {[%emt 00:01:28]} 13. cxd4
{[%clk 01:22:53]} {[%emt 00:01:53]} dxe5 {[%clk 01:03:26]} {[%emt 00:01:20]} 14.
d5 {[%clk 01:23:06]} {[%emt 00:00:16]} Na5 {[%clk 01:02:18]} {[%emt 00:01:38]}
15. Na3 {[%clk 01:20:29]} {[%emt 00:03:08]} Qd7 {[%clk 01:02:07]} {[%emt
00:00:41]} 16. Rac1 {[%clk 01:19:07]} {[%emt 00:01:53]} Nc8 {[%clk 00:58:29]}
{[%emt 00:04:07]} 17. b4 {[%clk 01:12:46]} {[%emt 00:06:51]} Nb7 {[%clk
00:58:29]} {[%emt 00:00:30]} 18. Rc6 {[%clk 01:12:26]} {[%emt 00:00:49]} Ne7
{[%clk 00:57:52]} {[%emt 00:01:08]} 19. b5 {[%clk 01:11:52]} {[%emt 00:01:05]}
Nd6 {[%clk 00:57:48]} {[%emt 00:00:33]} 20. Nc3 {[%clk 01:08:11]} {[%emt
00:04:11]} Rbc8 {[%clk 00:46:13]} {[%emt 00:12:06]} 21. Rc1 {[%clk 00:58:51]}
{[%emt 00:09:49]} f5 {[%clk 00:37:03]} {[%emt 00:09:40]} 22. Bg5 {[%clk
00:56:36]} {[%emt 00:02:44]} f4 {[%clk 00:30:56]} {[%emt 00:06:38]} 23. gxf4
{[%clk 00:53:28]} {[%emt 00:03:38]} exf4 {[%clk 00:27:56]} {[%emt 00:03:30]} 24.
Bxf4 {[%clk 00:53:27]} {[%emt 00:00:30]} Nxc6 {[%clk 00:26:04]} {[%emt
00:02:22]} 25. dxc6 {[%clk 00:53:09]} {[%emt 00:00:49]} Bxc3 {[%clk 00:25:14]}
{[%emt 00:01:20]} 26. Rxc3 {[%clk 00:52:17]} {[%emt 00:01:22]} Qg7 {[%clk
00:24:38]} {[%emt 00:01:06]} 27. Bxd6 {[%clk 00:50:12]} {[%emt 00:02:35]} Rfd8
{[%clk 00:23:13]} {[%emt 00:01:55]} 28. Qd5+ {[%clk 00:49:52]} {[%emt
00:00:51]} Kh8 {[%clk 00:23:40]} {[%emt 00:00:02]} 29. Be5 {[%clk 00:49:48]}
{[%emt 00:00:34]} 1-0

[Event "NJSK 2018 Jeugd A"]
[Site "Assen, Netherlands"]
[Date "2018.05.04"]
[Round "6.9"]
[White "Van der Werf, Joel"]
[Black "Van Dael, Siem"]
[Result "1-0"]
[TimeControl "40/90m+30m+30sec/move"]
[WhiteElo "1842"]
[BlackElo "2268"]

1. d4 {[%clk 01:30:58]} {[%emt 00:00:02]} Nf6 {[%clk 01:30:56]} {[%emt
00:00:04]} 2. c4 {[%clk 01:31:25]} {[%emt 00:00:03]} e6 {[%clk 01:31:20]}
{[%emt 00:00:06]} 3. g3 {[%clk 01:31:52]} {[%emt 00:00:03]} d5 {[%clk
01:31:46]} {[%emt 00:00:05]} 4. Nf3 {[%clk 01:32:18]} {[%emt 00:00:03]} c6
{[%clk 01:32:03]} {[%emt 00:00:13]} 5. Bg2 {[%clk 01:32:28]} {[%emt 00:00:20]}
Bd6 {[%clk 01:31:50]} {[%emt 00:00:42]} 6. O-O {[%clk 01:32:47]} {[%emt
00:00:12]} Nbd7 {[%clk 01:31:47]} {[%emt 00:00:33]} 7. Nbd2 {[%clk 01:32:02]}
{[%emt 00:01:15]} O-O {[%clk 01:31:54]} {[%emt 00:00:24]} 8. Qc2 {[%clk
01:27:07]} {[%emt 00:05:24]} Re8 {[%clk 01:31:14]} {[%emt 00:01:10]} 9. e4
{[%clk 01:26:07]} {[%emt 00:01:30]} Nxe4 {[%clk 01:30:44]} {[%emt 00:01:00]} 10.
Nxe4 {[%clk 01:26:32]} {[%emt 00:00:04]} dxe4 {[%clk 01:31:11]} {[%emt
00:00:05]} 11. Qxe4 {[%clk 01:26:57]} {[%emt 00:00:05]} e5 {[%clk 01:29:02]}
{[%emt 00:02:38]} 12. dxe5 {[%clk 01:12:05]} {[%emt 00:15:22]} Nxe5 {[%clk
01:29:27]} {[%emt 00:00:06]} 13. Nxe5 {[%clk 01:04:58]} {[%emt 00:07:37]} Bxe5
{[%clk 01:28:24]} {[%emt 00:01:33]} 14. Qc2 {[%clk 01:02:50]} {[%emt 00:02:38]}
Qf6 {[%clk 01:28:19]} {[%emt 00:00:35]} 15. a4 {[%clk 00:35:37]} {[%emt
00:27:43]} Bf5 {[%clk 01:27:30]} {[%emt 00:01:18]} 16. Qb3 {[%clk 00:34:34]}
{[%emt 00:01:33]} Re7 {[%clk 01:26:06]} {[%emt 00:01:55]} 17. a5 {[%clk
00:32:59]} {[%emt 00:02:06]} Rd8 {[%clk 01:24:23]} {[%emt 00:02:12]} 18. Be3
{[%clk 00:28:41]} {[%emt 00:04:47]} Rd3 {[%clk 01:16:43]} {[%emt 00:08:11]} 19.
Rad1 {[%clk 00:25:38]} {[%emt 00:03:33]} Red7 {[%clk 01:10:51]} {[%emt
00:06:22]} 20. Rxd3 {[%clk 00:25:25]} {[%emt 00:00:43]} Bxd3 {[%clk 01:11:14]}
{[%emt 00:00:06]} 21. Re1 {[%clk 00:23:50]} {[%emt 00:02:05]} h6 {[%clk
01:08:53]} {[%emt 00:02:51]} 22. Bxa7 {[%clk 00:18:31]} {[%emt 00:05:49]} Bxb2
{[%clk 01:05:52]} {[%emt 00:03:31]} 23. Bh3 {[%clk 00:14:42]} {[%emt 00:04:20]}
Rd8 {[%clk 00:58:20]} {[%emt 00:08:02]} 24. Bb6 {[%clk 00:13:24]} {[%emt
00:01:48]} Bd4 {[%clk 00:58:07]} {[%emt 00:00:43]} 25. Bxd4 {[%clk 00:12:45]}
{[%emt 00:01:09]} Qxd4 {[%clk 00:58:34]} {[%emt 00:00:02]} 26. Rd1 {[%clk
00:12:23]} {[%emt 00:00:53]} Re8 {[%clk 00:45:55]} {[%emt 00:13:09]} 27. Rxd3
{[%clk 00:09:43]} {[%emt 00:03:09]} Qa1+ {[%clk 00:46:21]} {[%emt 00:00:05]} 28.
Rd1 {[%clk 00:09:43]} {[%emt 00:00:30]} Re1+ {[%clk 00:46:26]} {[%emt
00:00:25]} 29. Rxe1 {[%clk 00:10:06]} {[%emt 00:00:07]} Qxe1+ {[%clk 00:46:53]}
{[%emt 00:00:03]} 30. Bf1 {[%clk 00:10:30]} {[%emt 00:00:06]} 1-0

[Event "NJSK 2018 Jeugd A"]
[Site "Assen, Netherlands"]
[Date "2018.05.05"]
[Round "7.1"]
[White "Schoppen, Casper"]
[Black "Kokje, Joris"]
[Result "1-0"]
[TimeControl "40/90m+30m+30sec/move"]
[WhiteElo "2396"]
[BlackElo "2265"]

1. e4 {[%clk 01:30:16]} {[%emt 00:01:23]} c5 {[%clk 01:30:52]} {[%emt
00:00:10]} 2. Nf3 {[%clk 01:30:43]} {[%emt 00:00:05]} d6 {[%clk 01:31:10]}
{[%emt 00:00:13]} 3. d4 {[%clk 01:30:44]} {[%emt 00:00:35]} cxd4 {[%clk
01:31:29]} {[%emt 00:00:12]} 4. Nxd4 {[%clk 01:31:08]} {[%emt 00:00:10]} Nf6
{[%clk 01:31:46]} {[%emt 00:00:19]} 5. Nc3 {[%clk 01:31:32]} {[%emt 00:00:04]}
a6 {[%clk 01:32:02]} {[%emt 00:00:12]} 6. h3 {[%clk 01:30:39]} {[%emt
00:01:38]} e6 {[%clk 01:31:45]} {[%emt 00:00:51]} 7. g4 {[%clk 01:30:38]}
{[%emt 00:00:27]} h6 {[%clk 01:32:04]} {[%emt 00:00:08]} 8. Bg2 {[%clk
01:31:02]} {[%emt 00:00:05]} g5 {[%clk 01:31:50]} {[%emt 00:00:35]} 9. b3
{[%clk 01:31:28]} {[%emt 00:00:03]} Nbd7 {[%clk 01:32:08]} {[%emt 00:00:11]} 10.
Bb2 {[%clk 01:31:53]} {[%emt 00:00:03]} Ne5 {[%clk 01:32:27]} {[%emt 00:00:09]}
11. Qd2 {[%clk 01:32:18]} {[%emt 00:00:04]} b5 {[%clk 01:32:31]} {[%emt
00:00:17]} 12. a4 {[%clk 01:28:45]} {[%emt 00:02:55]} bxa4 {[%clk 01:23:18]}
{[%emt 00:09:44]} 13. Nxa4 {[%clk 01:28:32]} {[%emt 00:00:42]} Bb7 {[%clk
01:21:34]} {[%emt 00:02:14]} 14. O-O-O {[%clk 01:27:10]} {[%emt 00:01:51]} Qc7
{[%clk 01:12:33]} {[%emt 00:09:32]} 15. Nc3 {[%clk 01:15:57]} {[%emt 00:11:43]}
Nfd7 {[%clk 01:08:34]} {[%emt 00:04:29]} 16. Kb1 {[%clk 01:15:12]} {[%emt
00:01:15]} Rb8 {[%clk 01:02:39]} {[%emt 00:06:59]} 17. Nf3 {[%clk 00:59:03]}
{[%emt 00:16:05]} Be7 {[%clk 00:53:49]} {[%emt 00:09:19]} 18. h4 {[%clk
00:51:20]} {[%emt 00:08:14]} Rg8 {[%clk 00:53:43]} {[%emt 00:00:36]} 19. hxg5
{[%clk 00:51:37]} {[%emt 00:00:12]} hxg5 {[%clk 00:54:01]} {[%emt 00:00:13]} 20.
Nxe5 {[%clk 00:51:29]} {[%emt 00:00:37]} Nxe5 {[%clk 00:53:14]} {[%emt
00:01:17]} 21. Rh3 {[%clk 00:46:56]} {[%emt 00:05:03]} Nxg4 {[%clk 00:47:45]}
{[%emt 00:05:59]} 22. Rg3 {[%clk 00:43:41]} {[%emt 00:03:46]} Nf6 {[%clk
00:42:56]} {[%emt 00:05:18]} 23. e5 {[%clk 00:40:35]} {[%emt 00:03:36]} dxe5
{[%clk 00:42:45]} {[%emt 00:00:41]} 24. Bxb7 {[%clk 00:40:55]} {[%emt
00:00:11]} Qxb7 {[%clk 00:39:50]} {[%emt 00:03:24]} 25. Rxg5 {[%clk 00:41:06]}
{[%emt 00:00:19]} Rd8 {[%clk 00:36:39]} {[%emt 00:03:41]} 26. Rxg8+ {[%clk
00:41:16]} {[%emt 00:00:21]} Nxg8 {[%clk 00:37:03]} {[%emt 00:00:06]} 27. Qe2
{[%clk 00:41:20]} {[%emt 00:00:26]} Rxd1+ {[%clk 00:34:05]} {[%emt 00:03:28]}
28. Nxd1 {[%clk 00:41:24]} {[%emt 00:00:28]} e4 {[%clk 00:30:40]} {[%emt
00:03:53]} 29. Qg4 {[%clk 00:37:49]} {[%emt 00:04:05]} Nf6 {[%clk 00:29:00]}
{[%emt 00:02:10]} 30. Qh4 {[%clk 00:37:52]} {[%emt 00:00:28]} Qd5 {[%clk
00:25:04]} {[%emt 00:04:27]} 31. Qh8+ {[%clk 00:31:16]} {[%emt 00:07:06]} Kd7
{[%clk 00:25:17]} {[%emt 00:00:17]} 32. Ne3 {[%clk 00:31:34]} {[%emt 00:00:11]}
Qg5 {[%clk 00:24:38]} {[%emt 00:01:09]} 33. Qa8 {[%clk 00:27:42]} {[%emt
00:04:23]} Qb5 {[%clk 00:21:05]} {[%emt 00:04:02]} 34. Nc4 {[%clk 00:27:18]}
{[%emt 00:00:55]} Ng4 {[%clk 00:16:14]} {[%emt 00:05:20]} 35. Qxe4 {[%clk
00:21:12]} {[%emt 00:06:36]} f5 {[%clk 00:13:36]} {[%emt 00:03:10]} 36. Qd4+
{[%clk 00:21:06]} {[%emt 00:00:34]} Kc7 {[%clk 00:07:02]} {[%emt 00:07:04]} 37.
Qg7 {[%clk 00:17:32]} {[%emt 00:04:03]} Qd7 {[%clk 00:04:46]} {[%emt 00:02:46]}
38. f3 {[%clk 00:17:17]} {[%emt 00:00:46]} 1-0

[Event "NJSK 2018 Jeugd A"]
[Site "Assen, Netherlands"]
[Date "2018.05.05"]
[Round "7.2"]
[White "Vrolijk, Liam"]
[Black "Warmerdam, Max"]
[Result "1/2-1/2"]
[TimeControl "40/90m+30m+30sec/move"]
[WhiteElo "2432"]
[BlackElo "2378"]

1. Nf3 {[%clk 01:30:51]} {[%emt 00:00:43]} Nf6 {[%clk 01:30:56]} {[%emt
00:00:15]} 2. c4 {[%clk 01:31:14]} {[%emt 00:00:12]} c5 {[%clk 01:31:23]}
{[%emt 00:00:05]} 3. Nc3 {[%clk 01:31:38]} {[%emt 00:00:08]} d5 {[%clk
01:31:47]} {[%emt 00:00:10]} 4. cxd5 {[%clk 01:32:01]} {[%emt 00:00:07]} Nxd5
{[%clk 01:32:12]} {[%emt 00:00:08]} 5. e3 {[%clk 01:32:25]} {[%emt 00:00:10]}
Nxc3 {[%clk 01:32:37]} {[%emt 00:00:05]} 6. dxc3 {[%clk 01:32:49]} {[%emt
00:00:08]} Qc7 {[%clk 01:31:41]} {[%emt 00:01:39]} 7. e4 {[%clk 01:30:25]}
{[%emt 00:03:04]} Nc6 {[%clk 01:30:50]} {[%emt 00:01:07]} 8. Be2 {[%clk
01:28:26]} {[%emt 00:01:19]} e6 {[%clk 01:30:10]} {[%emt 00:01:01]} 9. O-O
{[%clk 01:27:08]} {[%emt 00:01:48]} Bd6 {[%clk 01:29:57]} {[%emt 00:00:43]} 10.
Be3 {[%clk 01:22:22]} {[%emt 00:05:16]} O-O {[%clk 01:30:10]} {[%emt 00:00:16]}
11. Qc2 {[%clk 01:21:42]} {[%emt 00:01:10]} b6 {[%clk 01:24:30]} {[%emt
00:06:11]} 12. Rad1 {[%clk 01:21:05]} {[%emt 00:01:06]} Bb7 {[%clk 01:24:37]}
{[%emt 00:00:23]} 13. g3 {[%clk 01:10:50]} {[%emt 00:10:45]} Rad8 {[%clk
01:19:49]} {[%emt 00:05:19]} 14. Nd2 {[%clk 01:08:44]} {[%emt 00:02:37]} Be7
{[%clk 01:14:03]} {[%emt 00:06:14]} 15. Bf4 {[%clk 01:05:03]} {[%emt 00:04:11]}
Bd6 {[%clk 01:14:25]} {[%emt 00:00:08]} 16. Bxd6 {[%clk 00:56:24]} {[%emt
00:09:09]} Rxd6 {[%clk 01:13:34]} {[%emt 00:01:21]} 17. Nc4 {[%clk 00:54:26]}
{[%emt 00:02:29]} Rdd8 {[%clk 01:13:32]} {[%emt 00:00:32]} 18. Ne3 {[%clk
00:51:29]} {[%emt 00:03:27]} Ne5 {[%clk 01:07:10]} {[%emt 00:06:52]} 19. f4
{[%clk 00:44:32]} {[%emt 00:07:28]} Nc6 {[%clk 01:06:13]} {[%emt 00:01:27]} 20.
Rxd8 {[%clk 00:42:58]} {[%emt 00:02:03]} Rxd8 {[%clk 01:03:22]} {[%emt
00:03:22]} 21. Rd1 {[%clk 00:43:20]} {[%emt 00:00:08]} g5 {[%clk 00:48:23]}
{[%emt 00:15:28]} 22. e5 {[%clk 00:40:31]} {[%emt 00:03:19]} gxf4 {[%clk
00:41:14]} {[%emt 00:07:39]} 23. gxf4 {[%clk 00:38:02]} {[%emt 00:02:58]} Ne7
{[%clk 00:27:05]} {[%emt 00:15:07]} 24. Rxd8+ {[%clk 00:31:15]} {[%emt
00:06:49]} Qxd8 {[%clk 00:27:29]} {[%emt 00:00:06]} 25. Qd3 {[%clk 00:31:27]}
{[%emt 00:00:17]} Qxd3 {[%clk 00:20:55]} {[%emt 00:07:05]} 26. Bxd3 {[%clk
00:30:07]} {[%emt 00:01:50]} Nd5 {[%clk 00:21:08]} {[%emt 00:00:20]} 27. Nxd5
{[%clk 00:27:18]} {[%emt 00:03:17]} Bxd5 {[%clk 00:09:02]} {[%emt 00:12:35]} 28.
a3 {[%clk 00:27:41]} {[%emt 00:00:08]} h6 {[%clk 00:09:02]} {[%emt 00:00:30]}
29. Kf2 {[%clk 00:28:04]} {[%emt 00:00:08]} f6 {[%clk 00:08:55]} {[%emt
00:00:37]} 30. Kg3 {[%clk 00:27:01]} {[%emt 00:01:33]} Kg7 {[%clk 00:08:28]}
{[%emt 00:00:56]} 31. b4 {[%clk 00:26:58]} {[%emt 00:00:35]} fxe5 {[%clk
00:06:55]} {[%emt 00:02:02]} 32. fxe5 {[%clk 00:27:22]} {[%emt 00:00:07]} Bb3
{[%clk 00:07:12]} {[%emt 00:00:12]} 33. Kf4 {[%clk 00:27:14]} {[%emt 00:00:38]}
Kf7 {[%clk 00:07:05]} {[%emt 00:00:38]} 34. Ke3 {[%clk 00:27:02]} {[%emt
00:00:43]} a5 {[%clk 00:06:48]} {[%emt 00:00:46]} 35. bxa5 {[%clk 00:26:46]}
{[%emt 00:00:45]} bxa5 {[%clk 00:07:15]} {[%emt 00:00:04]} 36. Ke4 {[%emt
00:00:26]} 1/2-1/2

[Event "NJSK 2018 Jeugd A"]
[Site "Assen, Netherlands"]
[Date "2018.05.05"]
[Round "7.3"]
[White "Pols, Wiggert"]
[Black "De Boer, Bas"]
[Result "1-0"]
[TimeControl "40/90m+30m+30sec/move"]
[WhiteElo "2068"]
[BlackElo "2159"]

1. e4 {[%clk 01:30:39]} {[%emt 00:01:11]} c5 {[%clk 01:30:55]} {[%emt
00:00:09]} 2. Nc3 {[%clk 01:31:05]} {[%emt 00:00:06]} Nc6 {[%clk 01:31:21]}
{[%emt 00:00:07]} 3. g3 {[%clk 01:30:59]} {[%emt 00:00:43]} g6 {[%clk
01:30:58]} {[%emt 00:01:08]} 4. Bg2 {[%clk 01:31:24]} {[%emt 00:00:07]} Bg7
{[%clk 01:31:19]} {[%emt 00:00:08]} 5. d3 {[%clk 01:31:45]} {[%emt 00:00:07]}
d6 {[%clk 01:31:33]} {[%emt 00:00:14]} 6. Nge2 {[%clk 01:32:09]} {[%emt
00:00:05]} Rb8 {[%clk 01:31:26]} {[%emt 00:00:46]} 7. O-O {[%clk 01:32:22]}
{[%emt 00:00:24]} b5 {[%clk 01:31:08]} {[%emt 00:00:48]} 8. a3 {[%clk
01:30:00]} {[%emt 00:02:22]} a5 {[%clk 01:30:24]} {[%emt 00:00:43]} 9. f4
{[%clk 01:29:15]} {[%emt 00:00:40]} b4 {[%clk 01:25:41]} {[%emt 00:05:15]} 10.
axb4 {[%clk 01:29:28]} {[%emt 00:00:15]} axb4 {[%clk 01:26:03]} {[%emt
00:00:07]} 11. Nd5 {[%clk 01:29:17]} {[%emt 00:00:40]} Nd4 {[%clk 01:21:47]}
{[%emt 00:04:47]} 12. Ne3 {[%clk 01:28:07]} {[%emt 00:01:39]} e6 {[%clk
01:18:05]} {[%emt 00:04:15]} 13. g4 {[%clk 01:25:16]} {[%emt 00:03:19]} Ne7
{[%clk 01:08:41]} {[%emt 00:09:54]} 14. Ng3 {[%clk 01:20:35]} {[%emt 00:05:11]}
O-O {[%clk 01:01:44]} {[%emt 00:07:27]} 15. f5 {[%clk 01:16:10]} {[%emt
00:04:56]} Nec6 {[%clk 01:00:06]} {[%emt 00:02:13]} 16. g5 {[%clk 01:07:01]}
{[%emt 00:09:33]} exf5 {[%clk 00:44:21]} {[%emt 00:16:15]} 17. exf5 {[%clk
01:06:56]} {[%emt 00:00:36]} Qxg5 {[%clk 00:43:45]} {[%emt 00:01:05]} 18. f6
{[%clk 01:06:47]} {[%emt 00:00:39]} Bh6 {[%clk 00:39:47]} {[%emt 00:04:29]} 19.
Nef5 {[%clk 01:04:51]} {[%emt 00:02:24]} Qxc1 {[%clk 00:37:27]} {[%emt
00:02:49]} 20. Rxc1 {[%clk 01:04:38]} {[%emt 00:00:43]} gxf5 {[%clk 00:36:30]}
{[%emt 00:01:27]} 21. Bxc6 {[%clk 01:03:43]} {[%emt 00:01:27]} Nxc6 {[%clk
00:36:12]} {[%emt 00:00:51]} 22. Nxf5 {[%clk 00:56:16]} {[%emt 00:07:53]} Bxf5
{[%clk 00:35:53]} {[%emt 00:00:48]} 23. Rxf5 {[%clk 00:56:31]} {[%emt
00:00:16]} Kh8 {[%clk 00:35:59]} {[%emt 00:00:24]} 24. Ra1 {[%clk 00:55:47]}
{[%emt 00:01:14]} Nd4 {[%clk 00:34:10]} {[%emt 00:02:19]} 25. Rf1 {[%clk
00:55:10]} {[%emt 00:01:07]} Rbe8 {[%clk 00:31:20]} {[%emt 00:03:19]} 26. Kh1
{[%clk 00:54:29]} {[%emt 00:01:11]} b3 {[%clk 00:24:06]} {[%emt 00:07:44]} 27.
Qh5 {[%clk 00:51:55]} {[%emt 00:03:03]} Be3 {[%clk 00:23:47]} {[%emt 00:00:49]}
28. c3 {[%clk 00:51:06]} {[%emt 00:01:20]} Nc6 {[%clk 00:21:04]} {[%emt
00:03:12]} 29. Rae1 {[%clk 00:50:42]} {[%emt 00:00:55]} Nd8 {[%clk 00:20:13]}
{[%emt 00:01:48]} 30. Rxe3 {[%clk 00:50:37]} {[%emt 00:00:20]} 1-0